fUSD/lending_fUSD_20260616
["ID","MTS","AMOUNT","RATE_DAILY","PERIOD"]
[425203708,1781575782000,-683.51,5.843e-05,2]
[425203707,1781575782000,-250.0,5.801e-05,2]
[425203713,1781575783000,-471.86730245,5.916e-05,2]
[425203712,1781575783000,-577.25031885,5.916e-05,2]
[425203711,1781575783000,-577.25031885,5.916e-05,2]
[425203710,1781575783000,-216.13448155,5.872e-05,2]
[425203709,1781575783000,-1061.2637203,5.843e-05,2]
[425203717,1781575800000,-105.3830164,5.916e-05,2]
[425203716,1781575800000,-216.13448155,5.874e-05,2]
[425203715,1781575800000,-359.85381875,5.713e-05,2]
[425203714,1781575800000,-2746.99618125,5.713e-05,2]
[425203718,1781575801000,-577.25031885,5.916e-05,2]
[425203719,1781575801000,-577.25031885,5.916e-05,2]
[425203720,1781575801000,-562.76505871,5.916e-05,2]
[425203724,1781575834000,-500.0,5.698e-05,2]
[425203727,1781575837000,-265.84703492,5.915e-05,2]
[425203753,1781575838000,-577.25031885,5.916e-05,2]
[425203749,1781575838000,-577.25031885,5.916e-05,2]
[425203751,1781575838000,-577.25031885,5.916e-05,2]
[425203750,1781575838000,-577.25031885,5.916e-05,2]
[425203756,1781575838000,-577.25031885,5.916e-05,2]
[425203755,1781575838000,-577.25031885,5.916e-05,2]
[425203758,1781575838000,-577.25031885,5.916e-05,2]
[425203757,1781575838000,-577.25031885,5.916e-05,2]
[425203759,1781575838000,-577.25031885,5.916e-05,2]
[425203762,1781575838000,-577.25031885,5.916e-05,2]
[425203764,1781575838000,-577.25031885,5.916e-05,2]
[425203760,1781575838000,-577.25031885,5.916e-05,2]
[425203763,1781575838000,-577.25031885,5.916e-05,2]
[425203761,1781575838000,-577.25031885,5.916e-05,2]
[425203766,1781575838000,-577.25031885,5.916e-05,2]
[425203765,1781575838000,-577.25031885,5.916e-05,2]
[425203768,1781575838000,-577.25031885,5.916e-05,2]
[425203769,1781575838000,-577.25031885,5.916e-05,2]
[425203754,1781575838000,-577.25031885,5.916e-05,2]
[425203752,1781575838000,-577.25031885,5.916e-05,2]
[425203735,1781575838000,-577.25031885,5.916e-05,2]
[425203747,1781575838000,-577.25031885,5.916e-05,2]
[425203728,1781575838000,-34.15296508,5.915e-05,2]
[425203729,1781575838000,-14.48526014,5.916e-05,2]
[425203730,1781575838000,-577.25031885,5.916e-05,2]
[425203731,1781575838000,-577.25031885,5.916e-05,2]
[425203732,1781575838000,-577.25031885,5.916e-05,2]
[425203733,1781575838000,-577.25031885,5.916e-05,2]
[425203734,1781575838000,-577.25031885,5.916e-05,2]
[425203774,1781575838000,-569.00388572,5.916e-05,2]
[425203740,1781575838000,-577.25031885,5.916e-05,2]
[425203738,1781575838000,-577.25031885,5.916e-05,2]
[425203737,1781575838000,-577.25031885,5.916e-05,2]
[425203736,1781575838000,-577.25031885,5.916e-05,2]
[425203739,1781575838000,-577.25031885,5.916e-05,2]
[425203742,1781575838000,-577.25031885,5.916e-05,2]
[425203741,1781575838000,-577.25031885,5.916e-05,2]
[425203744,1781575838000,-577.25031885,5.916e-05,2]
[425203743,1781575838000,-577.25031885,5.916e-05,2]
[425203746,1781575838000,-577.25031885,5.916e-05,2]
[425203745,1781575838000,-577.25031885,5.916e-05,2]
[425203748,1781575838000,-577.25031885,5.916e-05,2]
[425203770,1781575838000,-569.00388572,5.916e-05,2]
[425203767,1781575838000,-577.25031885,5.916e-05,2]
[425203772,1781575838000,-569.00388572,5.916e-05,2]
[425203796,1781575838000,-569.00388572,5.916e-05,2]
[425203801,1781575838000,-392.14277903,5.916e-05,2]
[425203800,1781575838000,-569.00388572,5.916e-05,2]
[425203798,1781575838000,-569.00388572,5.916e-05,2]
[425203799,1781575838000,-569.00388572,5.916e-05,2]
[425203802,1781575838000,-284.12239535,5.916e-05,2]
[425203804,1781575838000,-566.41750441,5.916e-05,2]
[425203803,1781575838000,-566.41750441,5.916e-05,2]
[425203806,1781575838000,-566.41750441,5.916e-05,2]
[425203805,1781575838000,-566.41750441,5.916e-05,2]
[425203809,1781575838000,-566.41750441,5.916e-05,2]
[425203807,1781575838000,-566.41750441,5.916e-05,2]
[425203808,1781575838000,-566.41750441,5.916e-05,2]
[425203771,1781575838000,-569.00388572,5.916e-05,2]
[425203811,1781575838000,-566.41750441,5.916e-05,2]
[425203815,1781575838000,-325.36,6.234e-05,2]
[425203814,1781575838000,-7024.86,5.917e-05,2]
[425203813,1781575838000,-566.4175044,5.916e-05,2]
[425203812,1781575838000,-566.41750441,5.916e-05,2]
[425203797,1781575838000,-569.00388572,5.916e-05,2]
[425203795,1781575838000,-569.00388572,5.916e-05,2]
[425203810,1781575838000,-566.41750441,5.916e-05,2]
[425203794,1781575838000,-569.00388572,5.916e-05,2]
[425203773,1781575838000,-569.00388572,5.916e-05,2]
[425203793,1781575838000,-569.00388572,5.916e-05,2]
[425203776,1781575838000,-569.00388572,5.916e-05,2]
[425203777,1781575838000,-569.00388572,5.916e-05,2]
[425203778,1781575838000,-569.00388572,5.916e-05,2]
[425203779,1781575838000,-569.00388572,5.916e-05,2]
[425203781,1781575838000,-569.00388572,5.916e-05,2]
[425203782,1781575838000,-569.00388572,5.916e-05,2]
[425203783,1781575838000,-569.00388572,5.916e-05,2]
[425203775,1781575838000,-569.00388572,5.916e-05,2]
[425203786,1781575838000,-569.00388572,5.916e-05,2]
[425203784,1781575838000,-569.00388572,5.916e-05,2]
[425203780,1781575838000,-569.00388572,5.916e-05,2]
[425203787,1781575838000,-569.00388572,5.916e-05,2]
[425203789,1781575838000,-569.00388572,5.916e-05,2]
[425203788,1781575838000,-569.00388572,5.916e-05,2]
[425203791,1781575838000,-569.00388572,5.916e-05,2]
[425203785,1781575838000,-569.00388572,5.916e-05,2]
[425203792,1781575838000,-569.00388572,5.916e-05,2]
[425203790,1781575838000,-569.00388572,5.916e-05,2]
[425203834,1781575839000,-9999.99,6.457e-05,2]
[425203836,1781575839000,-3882.66,6.457e-05,2]
[425203838,1781575839000,-515.06801016,6.499e-05,2]
[425203837,1781575839000,-500.0,6.499e-05,2]
[425203840,1781575839000,-500.0,6.499e-05,2]
[425203847,1781575839000,-420.0,6.507e-05,2]
[425203844,1781575839000,-150.0,6.5e-05,2]
[425203846,1781575839000,-250.0,6.507e-05,2]
[425203843,1781575839000,-150.0,6.5e-05,2]
[425203845,1781575839000,-150.0,6.5e-05,2]
[425203848,1781575839000,-167.09,6.549e-05,2]
[425203850,1781575839000,-176.57283503,6.634e-05,2]
[425203835,1781575839000,-3231.34,6.457e-05,2]
[425203841,1781575839000,-329.28845206,6.499e-05,2]
[425203833,1781575839000,-521.96,6.457e-05,2]
[425203820,1781575839000,-250.0,6.329e-05,2]
[425203829,1781575839000,-250.0,6.457e-05,2]
[425203849,1781575839000,-683.51,6.573e-05,2]
[425203816,1781575839000,-500.0,6.234e-05,2]
[425203817,1781575839000,-303.55361357,6.234e-05,2]
[425203818,1781575839000,-160.0,6.257e-05,2]
[425203822,1781575839000,-150.99,6.446e-05,2]
[425203823,1781575839000,-1669.53,6.446e-05,2]
[425203821,1781575839000,-9999.99,6.446e-05,2]
[425203819,1781575839000,-167.09,6.289e-05,2]
[425203824,1781575839000,-22814.56,6.446e-05,2]
[425203825,1781575839000,-9999.99,6.446e-05,2]
[425203826,1781575839000,-9999.99,6.446e-05,2]
[425203827,1781575839000,-299.99,6.446e-05,2]
[425203830,1781575839000,-2806.4,6.457e-05,2]
[425203832,1781575839000,-999.99,6.457e-05,2]
[425203828,1781575839000,-7669.94,6.446e-05,2]
[425203831,1781575839000,-1199.18,6.457e-05,2]
[425203854,1781575839000,-638.80184824,6.666e-05,2]
[425203839,1781575839000,-500.0,6.499e-05,2]
[425203853,1781575839000,-900.58442506,6.666e-05,2]
[425203872,1781575839000,-683.51,7.303e-05,2]
[425203877,1781575839000,-2934.85,7.671e-05,2]
[425203883,1781575839000,-287.064318,7.945e-05,2]
[425203885,1781575839000,-1750.573078,7.945e-05,2]
[425203886,1781575839000,-500.0,7.945e-05,2]
[425203882,1781575839000,-1600.0,7.833e-05,2]
[425203889,1781575839000,-597.49999995,8e-05,2]
[425203888,1781575839000,-171.21,8e-05,2]
[425203887,1781575839000,-152.79359901,7.967e-05,2]
[425203890,1781575839000,-683.51,8.034e-05,2]
[425203891,1781575839000,-250.0,8.055e-05,2]
[425203894,1781575839000,-500.0,8.219e-05,2]
[425203892,1781575839000,-1333.232123,8.178e-05,2]
[425203893,1781575839000,-500.0,8.219e-05,2]
[425203851,1781575839000,-500.0,6.658e-05,2]
[425203873,1781575839000,-163.14840536,7.602e-05,2]
[425203871,1781575839000,-500.0,7.178e-05,2]
[425203842,1781575839000,-312.82096597,6.499e-05,2]
[425203869,1781575839000,-173.24479151,7.067e-05,2]
[425203852,1781575839000,-150.0,6.665e-05,2]
[425203855,1781575839000,-3132.74663371,6.666e-05,2]
[425203856,1781575839000,-732.68539863,6.666e-05,2]
[425203860,1781575839000,-3194.138,6.738e-05,2]
[425203857,1781575839000,-102731.31196588,6.667e-05,2]
[425203859,1781575839000,-1001.80072759,6.737e-05,2]
[425203870,1781575839000,-419.0,7.158e-05,2]
[425203858,1781575839000,-427.57619248,6.683e-05,2]
[425203862,1781575839000,-500.0,6.74e-05,2]
[425203863,1781575839000,-4373.0,6.767e-05,2]
[425203864,1781575839000,-34094.0,6.767e-05,2]
[425203867,1781575839000,-192.92,6.989e-05,2]
[425203865,1781575839000,-221.18,6.845e-05,2]
[425203866,1781575839000,-6256.3609,6.986e-05,2]
[425203868,1781575839000,-302.0,6.999e-05,2]
[425203861,1781575839000,-232.419,6.738e-05,2]
[425203898,1781575840000,-500.0,8.219e-05,2]
[425203896,1781575840000,-500.0,8.219e-05,2]
[425203895,1781575840000,-500.0,8.219e-05,2]
[425203897,1781575840000,-500.0,8.219e-05,2]
[425203900,1781575840000,-481.25820233,8.219e-05,2]
[425203899,1781575840000,-500.0,8.219e-05,2]
[425203902,1781575840000,-500.0,8.219e-05,2]
[425203903,1781575840000,-500.0,8.219e-05,2]
[425203904,1781575840000,-500.0,8.219e-05,2]
[425203907,1781575840000,-289.73477882,8.219e-05,2]
[425203906,1781575840000,-500.0,8.219e-05,2]
[425203905,1781575840000,-500.0,8.219e-05,2]
[425203901,1781575840000,-500.0,8.219e-05,2]
[425203924,1781575841000,-1600.0,8.812e-05,2]
[425203923,1781575841000,-500.0,8.767e-05,2]
[425203926,1781575841000,-2120.51749789,9.04e-05,2]
[425203925,1781575841000,-1765.65761184,9.04e-05,2]
[425203922,1781575841000,-683.51,8.764e-05,2]
[425203921,1781575841000,-345.0629705,8.557e-05,2]
[425203920,1781575841000,-160.0,8.525e-05,2]
[425203918,1781575841000,-1334.05,8.221e-05,2]
[425203915,1781575841000,-270.63557334,8.219e-05,2]
[425203917,1781575841000,-11382.11,8.219e-05,2]
[425203916,1781575841000,-1729.36442666,8.219e-05,2]
[425203911,1781575841000,-2771.64,8.219e-05,2]
[425203914,1781575841000,-111.69660028,8.219e-05,2]
[425203912,1781575841000,-500.0,8.219e-05,2]
[425203913,1781575841000,-748.86339972,8.219e-05,2]
[425203910,1781575841000,-165.02,8.219e-05,2]
[425203928,1781575841000,-1236.99912227,9.04e-05,2]
[425203919,1781575841000,-500.0,8.493e-05,2]
[425203927,1781575841000,-348.60381365,9.04e-05,2]
[425203909,1781575841000,-260.26522118,8.219e-05,2]
[425203931,1781575841000,-275.37,9.04e-05,2]
[425203930,1781575841000,-363.98,9.04e-05,2]
[425203946,1781575841000,-273.67429691,9.771e-05,2]
[425203947,1781575841000,-500.0,9.771e-05,2]
[425203948,1781575841000,-226.32570309,9.771e-05,2]
[425203945,1781575841000,-226.32570309,9.771e-05,2]
[425203939,1781575841000,-156.587,9.642e-05,2]
[425203941,1781575841000,-500.0,9.699e-05,2]
[425203940,1781575841000,-200.81199681,9.642e-05,2]
[425203936,1781575841000,-503.94854099,9.315e-05,2]
[425203944,1781575841000,-249.79237332,9.771e-05,2]
[425203938,1781575841000,-151.0,9.642e-05,2]
[425203943,1781575841000,-505.18046471,9.771e-05,2]
[425203937,1781575841000,-162.99,9.489e-05,2]
[425203935,1781575841000,-2000.0,9.247e-05,2]
[425203934,1781575841000,-876.814007,9.041e-05,2]
[425203933,1781575841000,-500.0,9.041e-05,2]
[425203932,1781575841000,-6696.44412279,9.04e-05,2]
[425203929,1781575841000,-539.31428028,9.04e-05,2]
[425203942,1781575841000,-500.0,9.771e-05,2]
[425203969,1781575843000,-500.0,9.771e-05,2]
[425203967,1781575843000,-466.0,9.771e-05,2]
[425203965,1781575843000,-62.05147102,9.771e-05,2]
[425203964,1781575843000,-403.94852898,9.771e-05,2]
[425203961,1781575843000,-273.07415757,9.771e-05,2]
[425203962,1781575843000,-238.88241435,9.771e-05,2]
[425203960,1781575843000,-0.60013934,9.771e-05,2]
[425203966,1781575843000,-500.0,9.771e-05,2]
[425203963,1781575843000,-193.04847102,9.771e-05,2]
[425203968,1781575843000,-466.0,9.771e-05,2]
[425203971,1781575843000,-248.2711003,9.771e-05,2]
[425203973,1781575843000,-466.0,9.771e-05,2]
[425203974,1781575843000,-350.64923369,9.771e-05,2]
[425203970,1781575843000,-466.0,9.771e-05,2]
[425203972,1781575843000,-466.0,9.771e-05,2]
[425203976,1781575843000,-466.0,9.771e-05,2]
[425203975,1781575843000,-115.35076631,9.771e-05,2]
[425203978,1781575843000,-187.16784338,9.771e-05,2]
[425203977,1781575843000,-466.0,9.771e-05,2]
[425203979,1781575843000,-278.83215662,9.771e-05,2]
[425203980,1781575843000,-274.13267879,9.771e-05,2]
[425203981,1781575844000,-191.86732121,9.771e-05,2]
[425203984,1781575844000,-466.0,9.771e-05,2]
[425203983,1781575844000,-382.71967706,9.771e-05,2]
[425203985,1781575844000,-231.16163949,9.771e-05,2]
[425203987,1781575844000,-466.0,9.771e-05,2]
[425203988,1781575844000,-466.0,9.771e-05,2]
[425203982,1781575844000,-83.28032294,9.771e-05,2]
[425203989,1781575844000,-136.04696708,9.771e-05,2]
[425203994,1781575844000,-466.0,9.771e-05,2]
[425203995,1781575844000,-175.85189838,9.771e-05,2]
[425203992,1781575844000,-156.28643834,9.771e-05,2]
[425203990,1781575844000,-329.95303292,9.771e-05,2]
[425203991,1781575844000,-466.0,9.771e-05,2]
[425203986,1781575844000,-234.83836051,9.771e-05,2]
[425203993,1781575844000,-309.71356166,9.771e-05,2]
[425203997,1781575846000,-111.03924698,9.771e-05,2]
[425203996,1781575846000,-290.14810162,9.771e-05,2]
[425204008,1781575906000,2816.08011849,0.00011,3]
[425204009,1781575906000,2816.08011849,0.00011,3]
[425204012,1781575922000,-524.48016124,5.79e-05,2]
[425204011,1781575922000,-1395.4429542,5.79e-05,2]
[425204010,1781575922000,-1461.44688456,5.79e-05,2]
[425204014,1781575927000,2662.36916501,5.698e-05,7]
[425204013,1781575927000,294.12583944,5.812e-05,7]
[425204015,1781575928000,441.18875918,6.154e-05,7]
[425204017,1781575928000,2662.36916501,5.983e-05,7]
[425204016,1781575928000,2662.36916501,5.812e-05,7]
[425204019,1781575929000,2662.36916502,6.382e-05,7]
[425204018,1781575929000,2662.36916501,6.154e-05,7]
[425204020,1781575936000,216.13448155,5.79e-05,2]
[425204021,1781576014000,-150.0,6.5e-05,2]
[425204022,1781576066000,-150.0,7.8e-05,2]
[425204024,1781576092000,-185.935,8.393e-05,2]
[425204023,1781576092000,-494.38928247,8.393e-05,2]
[425204026,1781576092000,-216.13448155,8.393e-05,2]
[425204027,1781576092000,-9439.55105,8.759e-05,2]
[425204025,1781576092000,-2555.31,8.393e-05,2]
[425204028,1781576121000,-230.50191644,8.802e-05,2]
[425204030,1781576149000,152.0,6.412e-05,7]
[425204029,1781576149000,152.0,6.696e-05,2]
[425204031,1781576150000,152.0,6.412e-05,7]
[425204033,1781576151000,152.0,6.425e-05,7]
[425204032,1781576151000,152.0,6.425e-05,7]
[425204034,1781576174000,-500.0,8.802e-05,2]
[425204035,1781576190000,218.86,0.0003,120]
[425204036,1781576226000,-500.0,8.802e-05,2]
[425204037,1781576242000,500.6455,8.704e-05,2]
[425204038,1781576279000,-500.0,8.802e-05,2]
[425204039,1781576303000,270047.5,8.758e-05,2]
[425204040,1781576314000,2000.0,8.557e-05,2]
[425204041,1781576334000,-500.0,8.802e-05,2]
[425204042,1781576361000,2135.80251856,8.791e-05,2]
[425204044,1781576388000,-161.35134151,8.801e-05,2]
[425204045,1781576442000,-500.0,8.801e-05,2]
[425204046,1781576444000,275180.0,8.728e-05,2]
[425204047,1781576449000,152.0,6.43e-05,7]
[425204049,1781576494000,291430.0,8.725e-05,2]
[425204048,1781576494000,-500.0,8.8e-05,2]
[425204050,1781576515000,246.7,0.0003013,120]
[425204051,1781576522000,144902.73216742,8.725e-05,2]
[425204052,1781576575000,221.60354415,0.00030137,120]
[425204053,1781576635000,251.06,0.0003,120]
[425204054,1781576743000,-317.44,7.923e-05,2]
[425204055,1781576744000,446.14,0.00030082,120]
[425204056,1781576796000,-193.0,7.934e-05,2]
[425204057,1781576851000,-500.0,7.788e-05,2]
[425204058,1781576868000,1545.26,0.0002963,120]
[425204059,1781576903000,-200.0,7.52e-05,2]
[425204073,1781576915000,-608.50705906,7.642e-05,2]
[425204072,1781576915000,-500.0,7.642e-05,2]
[425204070,1781576915000,-500.0,7.642e-05,2]
[425204069,1781576915000,-500.0,7.642e-05,2]
[425204071,1781576915000,-500.0,7.642e-05,2]
[425204068,1781576915000,-500.0,7.642e-05,2]
[425204065,1781576915000,-422.63889932,7.642e-05,2]
[425204074,1781576915000,-500.0,7.642e-05,2]
[425204067,1781576915000,-500.0,7.642e-05,2]
[425204064,1781576915000,-261.66,7.52e-05,7]
[425204063,1781576915000,-200.0,7.52e-05,7]
[425204060,1781576915000,-200.0,7.52e-05,2]
[425204062,1781576915000,-200.0,7.52e-05,7]
[425204066,1781576915000,-500.0,7.642e-05,2]
[425204075,1781576915000,-500.0,7.642e-05,2]
[425204061,1781576915000,-200.0,7.52e-05,2]
[425204079,1781576915000,-500.0,7.642e-05,2]
[425204077,1781576915000,-500.0,7.642e-05,2]
[425204091,1781576915000,-500.0,7.642e-05,2]
[425204092,1781576915000,-500.0,7.642e-05,2]
[425204090,1781576915000,-500.0,7.642e-05,2]
[425204088,1781576915000,-500.0,7.642e-05,2]
[425204087,1781576915000,-500.0,7.642e-05,2]
[425204086,1781576915000,-500.0,7.642e-05,2]
[425204089,1781576915000,-500.0,7.642e-05,2]
[425204085,1781576915000,-500.0,7.642e-05,2]
[425204083,1781576915000,-500.0,7.642e-05,2]
[425204082,1781576915000,-500.0,7.642e-05,2]
[425204081,1781576915000,-500.0,7.642e-05,2]
[425204080,1781576915000,-500.0,7.642e-05,2]
[425204078,1781576915000,-500.0,7.642e-05,2]
[425204076,1781576915000,-500.0,7.642e-05,2]
[425204084,1781576915000,-500.0,7.642e-05,2]
[425204093,1781576916000,-10231.8,7.643e-05,2]
[425204094,1781576957000,-150.0,7.867e-05,2]
[425204095,1781576963000,500.0,7.642e-05,2]
[425204098,1781576964000,500.0,7.642e-05,2]
[425204096,1781576964000,500.0,7.642e-05,2]
[425204100,1781576964000,500.0,7.642e-05,2]
[425204097,1781576964000,500.0,7.642e-05,2]
[425204101,1781576964000,500.0,7.642e-05,2]
[425204102,1781576964000,500.0,7.642e-05,2]
[425204103,1781576964000,500.0,7.642e-05,2]
[425204099,1781576964000,500.0,7.642e-05,2]
[425204104,1781577010000,-250.0,7.867e-05,2]
[425204122,1781577033000,-1405.132965,7.945e-05,2]
[425204120,1781577033000,-250.0,7.941e-05,2]
[425204121,1781577033000,-587.748285,7.945e-05,2]
[425204134,1781577034000,-150.99,8.243e-05,2]
[425204131,1781577034000,-571.36,8.243e-05,2]
[425204136,1781577034000,-957.46724028,8.41e-05,2]
[425204139,1781577034000,-6824.6285,8.625e-05,2]
[425204135,1781577034000,-299.99,8.243e-05,2]
[425204133,1781577034000,-9999.99,8.243e-05,2]
[425204140,1781577034000,-4182.5728,8.625e-05,2]
[425204137,1781577034000,-250.0,8.567e-05,2]
[425204138,1781577034000,-99412.5638,8.625e-05,2]
[425204128,1781577034000,-5691.05,8.219e-05,2]
[425204129,1781577034000,-236.75,8.219e-05,2]
[425204130,1781577034000,-957.46724028,8.219e-05,2]
[425204127,1781577034000,-2928.95,8.033e-05,2]
[425204126,1781577034000,-241.39,7.993e-05,3]
[425204124,1781577034000,-403.7882029,7.945e-05,2]
[425204123,1781577034000,-362.7585741,7.945e-05,2]
[425204125,1781577034000,-1000.0,7.993e-05,2]
[425204142,1781577034000,-300.0,8.653e-05,2]
[425204132,1781577034000,-389.715718,8.243e-05,2]
[425204141,1781577034000,-154.76150385,8.625e-05,2]
[425204151,1781577034000,-655.5266008,8.724e-05,2]
[425204144,1781577034000,-500.0,8.653e-05,2]
[425204143,1781577034000,-500.0,8.653e-05,2]
[425204162,1781577034000,-4147.0,8.954e-05,5]
[425204164,1781577034000,-671.85893626,8.954e-05,2]
[425204160,1781577034000,-216.13448155,8.827e-05,2]
[425204157,1781577034000,-15900.0,8.8e-05,3]
[425204159,1781577034000,-500.0,8.824e-05,2]
[425204156,1781577034000,-4429.60000649,8.725e-05,2]
[425204158,1781577034000,-16182.5531795,8.804e-05,2]
[425204154,1781577034000,-185.935,8.724e-05,2]
[425204155,1781577034000,-115621.88022738,8.725e-05,2]
[425204163,1781577034000,-89293.47273854,8.954e-05,2]
[425204153,1781577034000,-2044.248,8.724e-05,2]
[425204146,1781577034000,-500.0,8.653e-05,2]
[425204152,1781577034000,-1000.0,8.724e-05,2]
[425204150,1781577034000,-2500.0,8.704e-05,2]
[425204148,1781577034000,-236.75,8.676e-05,2]
[425204147,1781577034000,-500.0,8.653e-05,2]
[425204161,1781577034000,-23900.0,8.9e-05,3]
[425204145,1781577034000,-500.0,8.653e-05,2]
[425204149,1781577034000,-7900.0,8.7e-05,3]
[425204167,1781577040000,-160.0,7.945e-05,2]
[425204172,1781577040000,-1541.87207874,8.954e-05,2]
[425204169,1781577040000,-3219.07266507,8.954e-05,2]
[425204241,1781577041000,-565.0,9.771e-05,2]
[425204235,1781577041000,-236.75,9.589e-05,2]
[425204236,1781577041000,-2000.0,9.627e-05,2]
[425204237,1781577041000,-274.95457645,9.633e-05,2]
[425204231,1781577041000,-450.25158804,9.2e-05,2]
[425204248,1781577041000,-565.0,9.771e-05,2]
[425204246,1781577041000,-565.0,9.771e-05,2]
[425204238,1781577041000,-9999.99,9.67e-05,2]
[425204240,1781577041000,-565.0,9.771e-05,2]
[425204247,1781577041000,-560.83641299,9.771e-05,2]
[425204230,1781577041000,-5000.0,9.2e-05,2]
[425204251,1781577041000,-150.0,9.771e-05,2]
[425204249,1781577041000,-565.0,9.771e-05,2]
[425204234,1781577041000,-3925.32062419,9.478e-05,2]
[425204218,1781577041000,-66298.17707496,8.954e-05,2]
[425204229,1781577041000,-180.12730387,9.19e-05,2]
[425204225,1781577041000,-31900.0,9e-05,3]
[425204226,1781577041000,-500.0,9.098e-05,2]
[425204228,1781577041000,-236.75,9.132e-05,2]
[425204224,1781577041000,-498.0,8.977e-05,2]
[425204221,1781577041000,-1157.36235594,8.971e-05,2]
[425204220,1781577041000,-2329189.45507536,8.954e-05,2]
[425204223,1781577041000,-418.95473739,8.971e-05,2]
[425204219,1781577041000,-1384.02577487,8.954e-05,2]
[425204222,1781577041000,-188.91954552,8.971e-05,2]
[425204205,1781577041000,-934.76373425,8.954e-05,2]
[425204208,1781577041000,-1926.94594588,8.954e-05,2]
[425204210,1781577041000,-5540.35597607,8.954e-05,2]
[425204239,1781577041000,-11607.39,9.67e-05,2]
[425204233,1781577041000,-264.86153661,9.372e-05,2]
[425204245,1781577041000,-500.0,9.771e-05,2]
[425204289,1781577041000,-565.0,9.771e-05,2]
[425204254,1781577041000,-150.0,9.771e-05,2]
[425204243,1781577041000,-565.0,9.771e-05,2]
[425204313,1781577041000,-565.0,9.771e-05,2]
[425204307,1781577041000,-401.60725945,9.771e-05,2]
[425204311,1781577041000,-565.0,9.771e-05,2]
[425204303,1781577041000,-500.0,9.771e-05,2]
[425204309,1781577041000,-565.0,9.771e-05,2]
[425204301,1781577041000,-500.0,9.771e-05,2]
[425204299,1781577041000,-500.0,9.771e-05,2]
[425204297,1781577041000,-565.0,9.771e-05,2]
[425204295,1781577041000,-500.0,9.771e-05,2]
[425204293,1781577041000,-565.0,9.771e-05,2]
[425204291,1781577041000,-500.0,9.771e-05,2]
[425204287,1781577041000,-500.0,9.771e-05,2]
[425204283,1781577041000,-565.0,9.771e-05,2]
[425204305,1781577041000,-565.0,9.771e-05,2]
[425204281,1781577041000,-500.0,9.771e-05,2]
[425204285,1781577041000,-565.36990146,9.771e-05,2]
[425204260,1781577041000,-565.0,9.771e-05,2]
[425204266,1781577041000,-565.0,9.771e-05,2]
[425204253,1781577041000,-565.0,9.771e-05,2]
[425204256,1781577041000,-565.0,9.771e-05,2]
[425204258,1781577041000,-206.01859416,9.771e-05,2]
[425204262,1781577041000,-565.0,9.771e-05,2]
[425204268,1781577041000,-500.0,9.771e-05,2]
[425204279,1781577041000,-500.0,9.771e-05,2]
[425204272,1781577041000,-500.0,9.771e-05,2]
[425204270,1781577041000,-565.0,9.771e-05,2]
[425204274,1781577041000,-500.0,9.771e-05,2]
[425204264,1781577041000,-500.0,9.771e-05,2]
[425204276,1781577041000,-565.0,9.771e-05,2]
[425204389,1781577042000,-202.0,9.989e-05,2]
[425204403,1781577042000,-1000.0,0.0001,2]
[425204386,1781577042000,-202.0,9.989e-05,2]
[425204391,1781577042000,-202.0,9.989e-05,2]
[425204384,1781577042000,-202.0,9.989e-05,2]
[425204376,1781577042000,-151.0,9.9e-05,2]
[425204393,1781577042000,-202.0,9.989e-05,2]
[425204382,1781577042000,-302.0,9.901e-05,2]
[425204397,1781577042000,-202.0,9.989e-05,2]
[425204395,1781577042000,-202.0,9.989e-05,2]
[425204399,1781577042000,-1000.0,0.0001,2]
[425204380,1781577042000,-152.0,9.901e-05,2]
[425204412,1781577042000,-1000.0,0.0001,2]
[425204408,1781577042000,-1000.0,0.0001,2]
[425204416,1781577042000,-1000.0,0.0001,2]
[425204418,1781577042000,-1000.0,0.0001,2]
[425204421,1781577042000,-1000.0,0.0001,2]
[425204410,1781577042000,-1000.0,0.0001,2]
[425204405,1781577042000,-1000.0,0.0001,2]
[425204414,1781577042000,-1000.0,0.0001,2]
[425204423,1781577042000,-1000.0,0.0001,2]
[425204427,1781577042000,-1000.0,0.0001,2]
[425204425,1781577042000,-1000.0,0.0001,2]
[425204378,1781577042000,-152.0,9.901e-05,2]
[425204433,1781577042000,-1000.0,0.0001,2]
[425204401,1781577042000,-1000.0,0.0001,2]
[425204374,1781577042000,-1500000.0,9.9e-05,2]